Workbook

Sheet 报价汇总
A1: 施维雅市场服务报价单
A4: 项目名称: | B4: 2017/18 1st Cycle Meeting | E4: 供应商名称:
A5: 预计完成日期: | B5: 2017, Oct 20th | E5: 供应商联系电话:
A6: 项目地点： | B6: San Ya | E6: 电子邮箱：
A9: 序号 | B9: 服务类目 | D9: 预算小计 | E9: 结算小计 | F9: 说明
A10: 1 | B10: 创意设计 | D10: =Creative创意设计!H53 -> 69524 | E10: =Creative创意设计!O53 -> 69724
A11: 2 | B11: 搭建制作 | D11: =Event搭建制作!I187 -> 1961745.5 | E11: =Event搭建制作!M187 -> 2023541.3
A12: 3 | B12: Video视频 | D12: =Video视频!G63 -> 287165 | E12: =Video视频!K63 -> 286350
B13: 不含税总计 | D13: =SUM(D10:D12) -> 2318434.5 | E13: =SUM(E10:E12) -> 2379615.3
A15: 增值税金额小计(CNY): | D15: =D13*0.06 -> 139106.07 | E15: =E13*0.06 -> 142776.918 | F15: 施维雅只接受6%的增值税专用税,其他税费请含进单价中
A16: 含税总计(CNY): | C16: 含税总计(CNY) | D16: =D13+D15 -> 2457540.57 | E16: =E15+E13 -> 2522392.218 | F16: 整体打折优惠至2500000元。
A18: 备注： | B18: 其他项费用总计： | E18: =Creative创意设计!H50+Event搭建制作!I184+Video视频!G60 -> 47000 | F18: 施维雅采购部内部使用，请勿修改内部公式
A20: 说明:
A21: 1.此报价模板内有公式，各项服务小计都自动来自于各类目的明细表，请不要擅自修改；
A22: 2.此报价模板为报价单首页，报价时请在分项明细页填写分项合计需与首页一致；
E25: 报价人：
E27: 报价公司名称:
E29: 日期:

Sheet Sheet1 (hidden)
A2: Creative | F2: Event&Production | K2: Video Production
A3: 求和项:总价 | F3: 求和项:总价 | K3: 行标签 | L3: 求和项:总价 Subtotal
A4: 大会环节 | B4: 类别 Category | C4: 汇总 | F4: 大会环节 | G4: 类别 | H4: 项目 Item | I4: 汇总 | K4: Opening video (plenary session)（大会开场视频） | L4: 0
A5: Closing ceremony | B5: 主形象设计 | C5: 0 | F5: Team Building | G5: 人员 | H5: 人员费用 | K5: Post-event video - Closing ceremony（闭幕式现场花絮视频） | L5: 0
A6: For all sessions | B6: 微信相关 | C6: 0 | F6: (空白) | G6: AV设备租赁 | H6: Camera（摄像器材） | I6: 0 | K6: Post-event video - Gala dinner（晚宴现场花絮视频） | L6: 0
A7: Gala dinner | B7: 主形象设计 | C7: 0 | H7: 灯光设备租赁 | I7: 0 | K7: Post-event video - Opening cermony（大会现场花絮剪辑视频） | L7: 0
A8: Plenary session | B8: 主形象设计 | C8: 0 | H8: 视频设备租赁 | I8: 0 | K8: Post-event video - Team building（拓展活动现场花絮视频） | L8: 0
A9: Team Building | B9: 主形象设计 | C9: 0 | H9: 音频设备租赁 | I9: 0 | K9: Top Sales Video（销售明星视频） | L9: 0
A10: (空白) | B10: 其他 | C10: 0 | G10: 差旅费用 | H10: 差旅费用 | I10: 0 | K10: Warm-up Video(大会暖场视频) | L10: 0
B11: 图片 | C11: 0 | G11: 搭建 | H11: 搭建 | I11: 0 | K11: 其他 | L11: 0
B12: 完稿 | C12: 0 | G12: 道具/礼品 | H12: 道具 | K12: 总计 | L12: 0
B13: 延展设计 | C13: 0 | H13: 礼品
A14: 总计 | C14: 0 | G14: 其他 | H14: 其他 | I14: 0
G15: 人员 | H15: 人员费用 | I15: 0
G16: 运输费用 | H16: 物料运输费用 | I16: 0
G17: 制作 | H17: KT板 | I17: 0
H18: X架 | I18: 0
H19: 横幅 | I19: 0
H20: 讲台前板 | I20: 0
H21: 热转印布拉网展架 | I21: 0
H22: 提示牌 | I22: 0
H23: 写真画面 | I23: 0
H24: 易拉宝 | I24: 0
F25: 总计 | I25: 0

Sheet Creative创意设计
A1: 施维雅报价明细-创意和设计
A4: Currency币种:CNY人民币
A5: 说明：
A6: * | B6: 施维雅只接受6%的增值税,其他税费请一律含进单价
A7: * | B7: 如有任何修改或添加行，请用红色字体显示
A8: * | B8: 请不要删除行
A9: * | B9: 所有单价都不含增值税
F11: 具体项目预算 Quotation | M11: 具体项目结算
A12: 类别 Category | B12: 项目 Item | C12: 内容描述 Description | D12: 大会环节 | E12: 收费单位 Unit | F12: 单价 Unit Price | G12: 数量 Unit | H12: 总价 Subtotal | I12: 是否第三方费用 ?（Y/N) | J12: 人员职务 Profile | K12: Cost/ Day | L12: 人工天 days | M12: 结算单价 | N12: 结算数量 | O12: 结算总价 | P12: 备注
A13: 主形象设计 | B13: KV | C13: 整体活动等形象的整体全新创意；特指从无到有 | D13: Plenary session | E13: 个 | F13: 1000 | G13: 1 | H13: =F13*G13 -> 1000 | I13: N | M13: 1000 | N13: 1 | O13: =M13*N13 -> 1000
A14: 主形象设计 | B14: Slogan/Theme | C14: 整体活动等形象的整体全新创意；特指从无到有 | D14: Plenary session | E14: 个 | F14: 500 | G14: 1 | H14: 500 | I14: N | M14: 500 | N14: 1 | O14: 500
A15: 主形象设计 | B15: KV | C15: 整体活动等形象的整体全新创意；特指从无到有 | D15: Gala dinner | E15: 个 | F15: 1000 | G15: 1 | H15: 1000 | I15: N | M15: 1000 | N15: 1 | O15: 1000
A16: 主形象设计 | B16: Slogan/Theme | C16: 整体活动等形象的整体全新创意；特指从无到有 | D16: Gala dinner | E16: 个 | F16: 500 | G16: 1 | H16: 500 | I16: N | M16: 500 | N16: 1 | O16: 500
A17: 主形象设计 | B17: KV | C17: 整体活动等形象的整体全新创意；特指从无到有 | D17: Team Building | E17: 个 | F17: 1000 | G17: 1 | H17: 1000 | I17: N | M17: 1000 | N17: 1 | O17: 1000
A18: 主形象设计 | B18: Slogan/Theme | C18: 整体活动等形象的整体全新创意；特指从无到有 | D18: Team Building | E18: 个 | F18: 500 | G18: 1 | H18: 500 | I18: N | M18: 500 | N18: 1 | O18: 500
A19: 主形象设计 | B19: KV | C19: 整体活动等形象的整体全新创意；特指从无到有 | D19: Closing ceremony | E19: 个 | F19: 1000 | G19: 1 | H19: 1000 | I19: N | M19: 1000 | N19: 1 | O19: 1000
A20: 主形象设计 | B20: Slogan/Theme | C20: 整体活动等形象的整体全新创意；特指从无到有 | D20: Closing ceremony | E20: 个 | F20: 500 | G20: 1 | H20: 500 | I20: N | M20: 500 | N20: 1 | O20: 500
A21: 主形象设计 | B21: 项目策划及文案撰写费 | C21: 整个项目活动策划创意、环节设计，包含活动流程设计及项目涉及到的所有文案类撰写 | D21: Plenary session | E21: 个 | F21: 1000 | G21: 1 | H21: 1000 | I21: N | M21: 1000 | N21: 1 | O21: 1000
A22: 主形象设计 | B22: 项目策划及文案撰写费 | C22: 整个项目活动策划创意、环节设计，包含活动流程设计及项目涉及到的所有文案类撰写 | D22: Gala dinner | E22: 个 | F22: 1000 | G22: 1 | H22: 1000 | I22: N | M22: 1000 | N22: 1 | O22: 1000
A23: 主形象设计 | B23: 项目策划及文案撰写费 | C23: 整个项目活动策划创意、环节设计，包含活动流程设计及项目涉及到的所有文案类撰写 | D23: Team Building | E23: 个 | F23: 2000 | G23: 1 | H23: 2000 | I23: N | M23: 2000 | N23: 1 | O23: 2000
A24: 主形象设计 | B24: 项目策划及文案撰写费 | C24: 整个项目活动策划创意、环节设计，包含活动流程设计及项目涉及到的所有文案类撰写 | D24: Closing ceremony | E24: 个 | F24: 1000 | G24: 1 | H24: 1000 | I24: N | M24: 1000 | N24: 1 | O24: 1000
A25: 延展设计 | B25: 会场背景板设计 | C25: 与KV设计不同的情况下才另行收费 | E25: 个 | F25: 0 | G25: 0 | H25: 0 | M25: 0 | N25: 0 | O25: 0
A26: 延展设计 | B26: 展板设计 | C26: 展板不分材质和类型，包含易拉宝、X型展架、KT板等设计；每项目只支付一个设计，不分规格 | E26: 个 | F26: 0 | G26: 0 | H26: 0 | I26: N | M26: 200 | N26: 2 | O26: =M26*N26 -> 400 | P26: 增加项
A27: 延展设计 | B27: 会议邀请函设计 | E27: 个 | H27: 0 | I27: N | O27: =M27*N27 -> 0
A28: 延展设计 | B28: 海报设计 | E28: 个 | F28: 200 | G28: 8 | H28: 1600 | I28: N | M28: 200 | N28: 8 | O28: 1600
A29: 延展设计 | B29: 桌卡三面 | C29: 每项目只支付一个设计，不分规格 | E29: 个 | F29: 600 | G29: 1 | H29: 600 | I29: N | M29: 600 | N29: 1 | O29: 600
A30: 延展设计 | B30: 桌卡 | C30: 晚宴主桌领导桌卡 | E30: 个 | F30: 200 | G30: 1 | H30: 200 | I30: N | M30: 0 | N30: 0 | O30: 0 | P30: 减少项
A31: 延展设计 | B31: 横幅 | C31: 如果只涉及会议名称和logo,应免设计费 | E31: 个 | H31: 0 | I31: N
A32: 延展设计 | B32: PPT模板设计 | C32: 如果只涉及会议名称和logo,应免设计费 | E32: 套 | F32: 300 | G32: 1 | H32: 300 | I32: N | M32: 300 | N32: 1 | O32: =M32*N32 -> 300
A33: 3D设计 | B33: 会议舞台设计 | C33: 整体设计 | E33: 套 | F33: 5000 | G33: 1 | H33: 5000 | I33: N | M33: 5000 | N33: 1 | O33: 5000
A34: 3D设计 | B34: 晚宴舞台设计 | C34: 整体设计 | E34: 套 | F34: 5000 | G34: 1 | H34: 5000 | I34: N | M34: 5000 | N34: 1 | O34: 5000
A35: 图片 | B35: 图片租赁 | E35: 幅 | H35: 0 | I35: N
A36: 图片 | B36: 漫画/插画 （手绘） | C36: 手绘卡通形象，例如应用在患教手册中的；游戏场景设计中的等 | E36: 个 | H36: 0 | I36: N
A37: 完稿 | B37: 4K/8K | C37: 幻灯片除外 | E37: 页 | H37: 0 | I37: N
A38: 完稿 | B38: 16K/32K | C38: 幻灯片除外 | E38: 页 | H38: 0 | I38: N
A39: 完稿 | B39: 2K/易拉宝/拉网展架/背景板 | E39: 个 | F39: 200 | G39: 1 | H39: 200 | I39: N | M39: 200 | N39: 1 | O39: =M39*N39 -> 200
A40: 完稿 | B40: 大型写真喷绘 | C40: 最高不超10个小时 | E40: 个 | H40: 0 | I40: N
A41: 完稿 | B41: 图表描图 | C41: 扫描需要图片的费用 | E41: 个 | H41: 0 | I41: N
A42: 微信相关 | B42: 数据维护、录入 | D42: For all sessions | E42: 小时 | F42: 80 | G42: 48 | H42: 3840 | I42: Y | M42: 80 | N42: 48 | O42: =M42*N42 -> 3840
A43: 微信相关 | B43: 微信页面设计\编辑 | D43: For all sessions | E43: 页/page | F43: 2000 | G43: 6 | H43: 12000 | I43: Y | M43: 2000 | N43: 6 | O43: 12000
A44: 微信相关 | B44: 流程管理、平台运行维护 | D44: For all sessions | E44: 小时 | F44: 50 | G44: 480 | H44: =G44*F44 -> 24000 | I44: Y | M44: 50 | N44: 480 | O44: =N44*M44 -> 24000
A45: 微信相关 | B45: 微信视频生成及运营 | D45: For all sessions | E45: 项 | F45: 1000 | G45: 3 | H45: =G45*F45 -> 3000 | I45: N | M45: 1000 | N45: 3 | O45: =N45*M45 -> 3000
H46: =G46*F46 -> 0
H47: =G47*F47 -> 0
H48: =G48*F48 -> 0
G49: 创意和设计部分总计(不含服务费和税费): | H49: =SUM(H13:H48) -> 66740 | O49: =SUM(O13:O48) -> 66940
G50: 其他项费用总计： | H50: =SUM(H44:H48) -> 27000
G51: 第三方费用小计 Total 3rd party cost: | H51: =H44+H42 -> 27840 | O51: =H51 -> 27840
A52: 服务费 Service Fee | C52: 市场营销公司垫付的零星第三方支出，需要收取在实际发生基础上收取服务费的部分。请注意需要付款时提供第三方发票作为支持文件。 | G52: 0.1 | H52: =H51*G52 -> 2784 | O52: =H52 -> 2784
G53: 不含税总计: | H53: =H52+H49 -> 69524 | O53: =O49+O52 -> 69724
F54: 税金 Tax | G54: 0.06 | H54: =H53*0.06 -> 4171.44 | O54: =O53*0.06 -> 4183.44

Sheet Event搭建制作
A3: 施维雅报价明细-制作搭建
A6: Currency币种:CNY人民币
A7: 说明：
A8: * | B8: 施维雅只接受6%的增值税,其他税费请一律含进单价
A9: * | B9: 如有任何修改或添加行，请用红色字体显示
A10: * | B10: 请不要删除行
A11: * | B11: 所有单价都不含增值税
G13: 具体项目预算 Quotation | K13: 具体项目结算
A14: 类别 | B14: 项目 Item | C14: 规格 Specification | D14: 内容描述 Description | E14: 大会环节 | F14: 收费单位 Unit | G14: 单价 Unit Price | H14: 数量 Unit | I14: 总价 Subtotal | J14: 是否第三方费用?（Y/N) | K14: 结算单价 | L14: 结算数量 | M14: 结算总价 | N14: 备注
A15: 制作 | B15: 热转印布拉网展架 | C15: 3×3 M | D15: 展架外包装为塑料硬质包装箱；展架材质为挤压无缝铝合金管，塑料模块为ABS工程塑料；画面材质为1440DPI高光相纸喷绘，背覆PVC片。 | F15: 个 | I15: =G15*H15 -> 0 | J15: Y
A16: 制作 | B16: 热转印布拉网展架 | C16: 3×4 M | D16: 展架外包装为塑料硬质包装箱；展架材质为挤压无缝铝合金管，塑料模块为ABS工程塑料；画面材质为1441DPI高光相纸喷绘，背覆PVC片。 | F16: 个 | I16: 0 | J16: Y
A17: 制作 | B17: 热转印布拉网展架 | C17: 2x3 M | D17: 展架外包装为塑料硬质包装箱；展架材质为挤压无缝铝合金管，塑料模块为ABS工程塑料；画面材质为1442DPI高光相纸喷绘，背覆PVC片。 | F17: 个 | I17: 0 | J17: Y
A18: 制作 | B18: 易拉宝 | C18: 2x0.8 M | D18: 铝合金3节杆65mm弹簧内芯，高光相纸220克厚覆亚膜（1.2米以上宽度用双支撑杆），全铝合金底脚 | F18: 个 | I18: 0 | J18: Y
A19: 制作 | B19: 易拉宝 | C19: 2×0.85 M | D19: 铝合金3节杆65mm弹簧内芯，高光相纸220克厚覆亚膜（1.3米以上宽度用双支撑杆），全铝合金底脚 | F19: 个 | I19: 0 | J19: Y
A20: 制作 | B20: 易拉宝 | C20: 2×1.2 M | D20: 铝合金3节杆65mm弹簧内芯，高光相纸220克厚覆亚膜（1.4米以上宽度用双支撑杆），全铝合金底脚 | F20: 个 | I20: 0 | J20: Y
A21: 制作 | B21: 易拉宝 | C21: 2×1.5 M | D21: 铝合金3节杆65mm弹簧内芯，高光相纸220克厚覆亚膜（1.5米以上宽度用双支撑杆），全铝合金底脚 | F21: 个 | I21: 0 | J21: Y
A22: 制作 | B22: X架 | C22: 1.6×0.6 M | D22: 展架底部材质为无缝钢管，上部为碳铅杆；画面为背胶裱pvc片 | F22: 个 | I22: 0 | J22: Y
A23: 制作 | B23: X架 | C23: 1.8×0.8M | D23: 展架底部材质为无缝钢管，上部为碳铅杆；画面为背胶裱pvc片 | F23: 个 | I23: 0 | J23: Y
A24: 制作 | B24: X架 | C24: 2×1.2 M | D24: 展架底部材质为无缝钢管，上部为碳铅杆；画面为背胶裱pvc片 | F24: 个 | I24: 0 | J24: Y
A25: 制作 | B25: 横幅 | C25: 单色 | D25: 设计免费 | F25: 8至10米 | I25: 0 | J25: Y
A26: 制作 | B26: 横幅 | C26: 4色 喷绘布 | F26: 8至10米 | I26: 0 | J26: Y
A27: 制作 | B27: 写真画面 | C27: 单面 | F27: 平米 | I27: 0 | J27: Y
A28: 制作 | B28: KT板 | C28: 单面 | F28: 平米 | I28: 0 | J28: Y
A29: 制作 | B29: 提示牌 | C29: 写真 KT板 | D29: 亚展板；1440DPI写真喷绘 | F29: 个 | I29: 0 | J29: Y
A30: 制作 | B30: 讲台前板 | C30: 写真 KT板 | D30: 亚展板；1440DPI写真喷绘 | F30: 个 | I30: 0 | J30: Y
A31: 搭建 | B31: 搭建 | C31: 主舞台 | D31: 圆形舞台+木板封边+灯带镶嵌 规格：14m直径*H0.6m | E31: Plenary session | F31: 平米 | G31: 48000 | H31: 1 | I31: 48000 | J31: Y | K31: 48000 | L31: 1 | M31: =K31*L31 -> 48000
A32: 搭建 | B32: 搭建 | C32: 主舞台 | D32: 灰色加厚拉绒毯 规格：14m直径 | E32: Plenary session | F32: 平米 | G32: 35 | H32: 200 | I32: 7000 | J32: Y | K32: 35 | L32: 200 | M32: 7000
A33: 搭建 | B33: 搭建 | C33: 投影布 | D33: 方管架+双层绷弹力布 规格：3m*7m*4+3m*2m*4 | E33: Plenary session | F33: 米 | G33: 350 | H33: 120 | I33: =G33*H33 -> 42000 | J33: Y | K33: 350 | L33: 120 | M33: 42000
A34: 搭建 | B34: 搭建 | C34: 搭建人员费用 | D34: 舞美搭建-布展搭建人工 | E34: Plenary session | F34: 位 | G34: 300 | H34: 30 | I34: 9000 | J34: Y | K34: 300 | L34: 30 | M34: 9000
A35: 搭建 | B35: 搭建 | C35: 搭建物料运输费用 | D35: 舞美搭建-所有物料运输 | E35: Plenary session | F35: 趟 | G35: 400 | H35: 12 | I35: 4800 | J35: Y | K35: 400 | L35: 12 | M35: 4800
A36: 搭建 | B36: 搭建 | C36: 腰幕 | D36: LED底座 5*2*4 | E36: Plenary session | F36: 平米 | G36: 1000 | H36: 4 | I36: 4000 | J36: Y | K36: 1000 | L36: 4 | M36: 4000
A37: 搭建 | B37: 搭建 | C37: 主舞台区域 | D37: 力压架舞台+模板封边 规格：34m*10m | E37: Gala dinner | F37: 平米 | G37: 140 | H37: 340 | I37: =G37*H37 -> 47600 | J37: Y | K37: 140 | L37: 340 | M37: 47600
A38: 搭建 | B38: 搭建 | C38: 主舞台区域 | D38: 灰色加厚拉绒毯 规格：14m直径 | E38: Gala dinner | F38: 平米 | G38: 35 | H38: 340 | I38: 11900 | J38: Y | K38: 35 | L38: 340 | M38: 11900
A39: 搭建 | B39: 搭建 | C39: 主舞台区域 | D39: 三步台阶 34米 | E39: Gala dinner | F39: 组 | G39: 18000 | H39: 1 | I39: 18000 | J39: Y | K39: 18000 | L39: 1 | M39: 18000
A40: 搭建 | B40: 搭建 | C40: LED支撑 | D40: 16米 | E40: Gala dinner | F40: 组 | G40: 110 | H40: 16 | I40: 1760 | J40: Y | K40: 110 | L40: 16 | M40: 1760
A41: 搭建 | B41: 搭建 | C41: 彩幕背架 | D41: 5米宽*4个 | E41: Gala dinner | F41: 组 | G41: 1000 | H41: 4 | I41: 4000 | J41: Y | K41: 1000 | L41: 4 | M41: 4000
A42: 搭建 | B42: 搭建 | C42: 搭建人员费用 | D42: 舞美搭建-布展搭建人工 | E42: Gala dinner | F42: 位 | G42: 300 | H42: 30 | I42: =G42*H42 -> 9000 | J42: Y | K42: 300 | L42: 30 | M42: 9000
A43: 搭建 | B43: 搭建 | C43: 搭建物料运输费用 | D43: 舞美搭建-所有物料运输 | E43: Gala dinner | F43: 趟 | G43: 400 | H43: 12 | I43: 4800 | J43: Y | K43: 400 | L43: 12 | M43: 4800
A44: 搭建 | B44: 搭建 | C44: 晚宴外场搭建 | D44: 实际：TRUSS架17米+Par灯6只+5张台布 | E44: Gala dinner | F44: 组 | G44: 20000 | H44: 1 | I44: 20000 | J44: Y | K44: 1000 | L44: 1 | M44: 1000 | N44: 内容减少
A45: AV设备租赁 | B45: 视频设备租赁 | C45: 视频切换器 | D45: 630 高清视频切换器 | E45: Plenary session | F45: 台/天 | G45: 1500 | H45: 2 | I45: =G45*H45 -> 3000 | J45: Y | K45: 1500 | L45: 2 | M45: 3000
A46: AV设备租赁 | B46: 视频设备租赁 | C46: 翻页器 | D46: QL翻页器 | E46: Plenary session | F46: 台/天 | G46: 800 | H46: 2 | I46: 1600 | J46: Y | K46: 800 | L46: 2 | M46: 1600
A47: AV设备租赁 | B47: 视频设备 | C47: LED | D47: 4*2*4；共4块 | E47: Plenary session | F47: 平米 | G47: 450 | H47: 32 | I47: 14400 | J47: Y | K47: 450 | L47: 32 | M47: 14400
A48: AV设备租赁 | B48: 视频设备租赁 | C48: 投影仪租赁 | D48: 爱普生CB-L1505U | E48: Plenary session | F48: 台/天 | G48: 8500 | H48: 8 | I48: =G48*H48 -> 68000 | J48: Y | K48: 8500 | L48: 8 | M48: 68000
A49: AV设备租赁 | B49: 视频设备租赁 | C49: Watchout视频控制软件 | D49: 多画面视频拼接系统 | E49: Plenary session | F49: 台/天 | G49: 3000 | H49: 1 | I49: =G49*H49 -> 3000 | J49: Y | K49: 3000 | L49: 1 | M49: 3000
A50: AV设备租赁 | B50: 视频设备租赁 | C50: 等离子电视租赁 | D50: 55寸 租赁 55寸液晶电视机（提示器） | E50: Plenary session | F50: 台/天 | G50: 1000 | H50: 4 | I50: 4000 | J50: Y | K50: 1000 | L50: 4 | M50: 4000
A51: AV设备租赁 | B51: 视频设备租赁 | C51: 导播台 | E51: Plenary session | F51: 个/天 | G51: 5000 | H51: 1 | I51: 5000 | J51: Y | K51: 5000 | L51: 1 | M51: 5000
A52: AV设备租赁 | B52: 视频设备租赁 | C52: 苹果电脑租赁 | E52: Plenary session | F52: 台/天 | G52: 500 | H52: 4 | I52: 2000 | J52: Y | K52: 500 | L52: 4 | M52: 2000
A53: AV设备租赁 | B53: 视频设备租赁 | C53: 室外P4屏 | D53: P4户外LED主屏（20m*6m) | E53: Gala dinner | F53: 平米 | G53: 400 | H53: 120 | I53: 48000 | J53: Y | K53: 400 | L53: 120 | M53: 48000
A54: AV设备租赁 | B54: 视频设备租赁 | C54: 视频切换器 | D54: 630 高清视频切换器 | E54: Gala dinner | F54: 台/天 | G54: 1500 | H54: 2 | I54: =G54*H54 -> 3000 | J54: Y | K54: 1500 | L54: 2 | M54: 3000
A55: AV设备租赁 | B55: 视频设备租赁 | C55: 切换器 | D55: 高清视频切换器 | E55: Gala dinner | F55: 台/天 | G55: 1200 | H55: 1 | I55: 1200 | J55: Y | K55: 0 | L55: 0 | M55: 0 | N55: 减少
A56: AV设备租赁 | B56: 视频设备租赁 | C56: 分屏器 | D56: V3+迈思那 | E56: Gala dinner | F56: 台/天 | J56: Y | K56: 5500 | L56: 1 | M56: 5500 | N56: 节目需要增加项
A57: AV设备租赁 | B57: 视频设备租赁 | C57: 苹果电脑租赁 | D57: 苹果笔记本PRO | E57: Gala dinner | F57: 台/天 | G57: 500 | H57: 1 | I57: 500 | J57: Y | K57: 500 | L57: 1 | M57: 500
A58: AV设备租赁 | B58: 视频设备租赁 | C58: IBM笔记本电脑租赁 | D58: IBM笔记本420 | E58: Gala dinner | F58: 台/天 | G58: 200 | H58: 3 | I58: 600 | J58: Y | K58: 200 | L58: 3 | M58: 600
A59: AV设备租赁 | B59: 视频设备租赁 | C59: 55寸液晶电视 | D59: 55寸液晶电视机 | E59: Gala dinner | F59: 台/天 | G59: 1000 | H59: 2 | I59: 2000 | J59: Y | K59: 0 | L59: 0 | M59: 0 | N59: 减少项
A60: AV设备租赁 | B60: 视频设备租赁 | C60: 光钎线缆 | D60: 数字光纤线缆 | E60: Gala dinner | F60: 台/天 | G60: 2000 | H60: 1 | I60: 2000 | J60: Y | K60: 2000 | L60: 1 | M60: 2000
A61: AV设备租赁 | B61: 音频设备租赁 | C61: 数字48路调音台 | D61: YAMAHA M7CL DIGITAL AUDIO MIXER | E61: Plenary session | F61: 台/天 | G61: 4400 | H61: 1 | I61: 4400 | J61: Y | K61: 4400 | L61: 1 | M61: 4400
A62: AV设备租赁 | B62: 音频设备租赁 | C62: 返送 | D62: MIX WOOFER SPEAKER（NEXO PS--15） | E62: Plenary session | F62: 台/天 | G62: 600 | H62: 8 | I62: =G62*H62 -> 4800 | J62: Y | K62: 600 | L62: 8 | M62: 4800
A63: AV设备租赁 | B63: 音频设备租赁 | C63: 线阵列音箱 | D63: RCF LINE ARRAY LOUDSPEAKERR | E63: Plenary session | F63: 台/天 | G63: 550 | H63: 24 | I63: 13200 | J63: Y | K63: 550 | L63: 24 | M63: 13200
A64: AV设备租赁 | B64: 音频设备租赁 | C64: 线阵列低音音箱 | D64: RCF SUB LINE ARRAY LOUDSPEAKER | E64: Plenary session | F64: 台/天 | G64: 800 | H64: 10 | I64: 8000 | J64: Y | K64: 800 | L64: 10 | M64: 8000
A65: AV设备租赁 | B65: 音频设备租赁 | C65: 数字功率放大器 | D65: RCF AMP | E65: Plenary session | F65: 台/天 | G65: 300 | H65: 17 | I65: 5100 | J65: Y | K65: 300 | L65: 17 | M65: 5100
A66: AV设备租赁 | B66: 音频设备租赁 | C66: 数字功率放大器 | D66: QSC AMP | E66: Plenary session | F66: 台/天 | G66: 300 | H66: 8 | I66: 2400 | J66: Y | K66: 300 | L66: 8 | M66: 2400
A67: AV设备租赁 | B67: 音频设备租赁 | C67: 无线手持 | D67: SHURE UR4D BETA87 UHF HANDHELD MIC | E67: Plenary session | F67: 台/天 | G67: 200 | H67: 6 | I67: 1200 | J67: Y | K67: 200 | L67: 6 | M67: 1200
A68: AV设备租赁 | B68: 音频设备租赁 | C68: 无线头戴 | D68: SHURE UR4D WH20TQG UHF HEADWORN MIC | E68: Plenary session | F68: 台/天 | G68: 200 | H68: 6 | I68: 1200 | J68: Y | K68: 200 | L68: 6 | M68: 1200
A69: AV设备租赁 | B69: 音频设备租赁 | C69: 天线放大器 | D69: SHURE UA845 UA830A | E69: Plenary session | F69: 台/天 | G69: 500 | H69: 2 | I69: 1000 | J69: Y | K69: 500 | L69: 2 | M69: 1000
A70: AV设备租赁 | B70: 音频设备租赁 | C70: 数字音频处理器 | D70: XTA--390 | E70: Plenary session | F70: 台/天 | G70: 1000 | H70: 2 | I70: 2000 | J70: Y | K70: 1000 | L70: 2 | M70: 2000
A71: AV设备租赁 | B71: 音频设备租赁 | C71: 苹果笔记本 | D71: MAC BOOK PRO | E71: Plenary session | F71: 台/天 | G71: 500 | H71: 2 | I71: =G71*H71 -> 1000 | J71: Y | K71: 500 | L71: 2 | M71: 1000
A72: AV设备租赁 | B72: 音频设备租赁 | C72: 音频版块 | D72: Antenna amplifier U段天线放大传输系统 SENNHEISER AB2 UHF | E72: Plenary session | F72: 台/天 | G72: 500 | H72: 2 | I72: 1000 | J72: Y | K72: 500 | L72: 2 | M72: 1000
A73: AV设备租赁 | B73: 音频设备租赁 | C73: 音频版块 | D73: Signal Cable 配套线材 | E73: Plenary session | F73: 套 | G73: 0 | H73: 1 | I73: 0 | J73: Y | K73: 0 | L73: 1 | M73: 0
A74: AV设备租赁 | B74: 灯光设备租赁 | C74: 灯光版块 | D74: Lighting Mixing Console 灯光控台 Highend PEARL 2010 | E74: Plenary session | F74: 台/天 | G74: 1000 | H74: 1 | I74: 1000 | J74: Y | K74: 1000 | L74: 1 | M74: 1000
A75: AV设备租赁 | B75: 灯光设备租赁 | C75: 灯光版块 | D75: Moving Light/Spot 电脑灯-图案 ROBE1500W | E75: Plenary session | F75: 台/天 | G75: 350 | H75: 10 | I75: =G75*H75 -> 3500 | J75: Y | K75: 350 | L75: 10 | M75: 3500
A76: AV设备租赁 | B76: 灯光设备租赁 | C76: 灯光版块 | D76: logo片 37.5 | E76: Plenary session | F76: 个 | G76: 120 | H76: 4 | I76: 480 | J76: Y | K76: 120 | L76: 6 | M76: 720 | N76: 增加数量
A77: AV设备租赁 | B77: 灯光设备租赁 | C77: 灯光版块 | D77: 摇头LED par Q3 | E77: Plenary session | F77: 台/天 | G77: 400 | H77: 24 | I77: 9600 | J77: Y | K77: 400 | L77: 24 | M77: 9600
A78: AV设备租赁 | B78: 灯光设备租赁 | C78: 灯光版块 | D78: Moving Light/wash 电脑灯-光束 ROBE-BM15R-330 | E78: Plenary session | F78: 台/天 | G78: 400 | H78: 48 | I78: 19200 | J78: Y | K78: 400 | L78: 48 | M78: 19200
A79: AV设备租赁 | B79: 灯光设备租赁 | C79: 灯光版块 | D79: LED par vikey 54珠 | E79: Plenary session | F79: 台/天 | G79: 150 | H79: 68 | I79: 10200 | J79: Y | K79: 150 | L79: 68 | M79: 10200
A80: AV设备租赁 | B80: 灯光设备租赁 | C80: 灯光版块 | D80: DMX Splitters DMX信号分配放大器 MTL DS-106A | E80: Plenary session | F80: 台/天 | G80: 150 | H80: 4 | I80: 600 | J80: Y | K80: 150 | L80: 4 | M80: 600
A81: AV设备租赁 | B81: 灯光设备租赁 | C81: 灯光版块 | D81: 四头灯 MONON | E81: Plenary session | F81: 台/天 | G81: 200 | H81: 4 | I81: 800 | J81: Y | K81: 200 | L81: 4 | M81: 800
A82: AV设备租赁 | B82: 灯光设备租赁 | C82: 灯光版块 | D82: Source Four Zoom ETC 成像灯26度 MONON 750W | E82: Plenary session | F82: 台/天 | G82: 200 | H82: 24 | I82: 4800 | J82: Y | K82: 200 | L82: 24 | M82: 4800
A83: AV设备租赁 | B83: 灯光设备租赁 | C83: 灯光版块 | D83: 追光 MONON 2500W | E83: Plenary session | F83: 台/天 | G83: 600 | H83: 2 | I83: 1200 | J83: Y | K83: 600 | L83: 2 | M83: 1200
A84: AV设备租赁 | B84: 灯光设备租赁 | C84: 灯光版块 | D84: ETCpar MONON 750W | E84: Plenary session | F84: 台/天 | G84: 200 | H84: 2 | I84: 400 | J84: Y | K84: 200 | L84: 2 | M84: 400
A85: AV设备租赁 | B85: 灯光设备租赁 | C85: 灯光版块 | D85: Digital Dimmer Pack 24路可控硅箱 MTL | E85: Plenary session | F85: 台/天 | G85: 400 | H85: 1 | I85: 400 | J85: Y | K85: 400 | L85: 1 | M85: 400
A86: AV设备租赁 | B86: 灯光设备租赁 | C86: 灯光版块 | D86: 380V 3Phance Power Box 电源箱 MTL | E86: Plenary session | F86: 台/天 | G86: 500 | H86: 2 | I86: 1000 | J86: Y | K86: 500 | L86: 2 | M86: 1000
A87: AV设备租赁 | B87: 灯光设备租赁 | C87: 灯光版块 | D87: TURSS架 600X760 | E87: Plenary session | F87: 米 | G87: 100 | H87: 260 | I87: 26000 | J87: Y | K87: 100 | L87: 260 | M87: 26000
A88: AV设备租赁 | B88: 灯光设备租赁 | C88: 灯光版块 | D88: TURSS架 400X500 | E88: Plenary session | F88: 米 | G88: 65 | H88: 48 | I88: 3120 | J88: Y | K88: 65 | L88: 48 | M88: 3120
A89: AV设备租赁 | B89: 灯光设备租赁 | C89: 灯光版块 | D89: LFA 烟机(舞台专业数位薄雾机） LFA | E89: Plenary session | F89: 台/天 | G89: 300 | H89: 4 | I89: 1200 | J89: Y | K89: 300 | L89: 4 | M89: 1200
A90: AV设备租赁 | B90: 灯光设备租赁 | C90: 灯光版块 | D90: 2 Ton Electric Chain Hoists 电葫芦 CM | E90: Plenary session | F90: 台/天 | G90: 350 | H90: 10 | I90: 3500 | J90: Y | K90: 350 | L90: 10 | M90: 3500
A91: AV设备租赁 | B91: 灯光设备租赁 | C91: 灯光版块 | D91: Signal Cable 配套线材 | E91: Plenary session | F91: 台/天 | G91: 0 | H91: 1 | I91: 0 | J91: Y | K91: 0 | L91: 1 | M91: 0
A92: AV设备租赁 | B92: 灯光设备租赁 | C92: 灯光版块 | D92: 灯光音响-所有物料进撤场搭建人工 | E92: Plenary session | F92: 位/天 | G92: 300 | H92: 60 | I92: 18000 | J92: Y | K92: 300 | L92: 60 | M92: 18000
A93: AV设备租赁 | B93: 灯光设备租赁 | C93: 灯光版块 | D93: 灯光音响-所有物料往返运输 | E93: Plenary session | F93: 趟/辆 | G93: 400 | H93: 16 | I93: 6400 | J93: Y | K93: 400 | L93: 16 | M93: 6400
A94: AV设备租赁 | B94: 搭建人员 | C94: 布展工作人员 | E94: Plenary session | F94: 位 | G94: 300 | H94: 32 | I94: =G94*H94 -> 9600 | J94: Y | K94: 300 | L94: 32 | M94: 9600
A95: AV设备租赁 | B95: 运输费 | C95: 物料往返运输 | E95: Plenary session | F95: 趟 | G95: 400 | H95: 8 | I95: 3200 | J95: Y | K95: 400 | L95: 8 | M95: 3200
A96: AV设备租赁 | B96: 音频设备租赁 | C96: 数字48路调音台 | D96: YAMAHA M7CL DIGITAL AUDIO MIXER | E96: Gala dinner | F96: 台/天 | G96: 4400 | H96: 1 | I96: =G96*H96 -> 4400 | J96: Y | K96: 4400 | L96: 1 | M96: =K96*L96 -> 4400
A97: AV设备租赁 | B97: 音频设备租赁 | C97: 返送 | D97: MIX WOOFER SPEAKER（NEXO PS--15） | E97: Gala dinner | F97: 台/天 | G97: 600 | H97: 12 | I97: =G97*H97 -> 7200 | J97: Y | K97: 600 | L97: 12 | M97: 7200
A98: AV设备租赁 | B98: 音频设备租赁 | C98: 线阵列音箱 | D98: RCF LINE ARRAY LOUDSPEAKERR | E98: Gala dinner | F98: 台/天 | G98: 550 | H98: 26 | I98: 14300 | J98: Y | K98: 550 | L98: 26 | M98: 14300
A99: AV设备租赁 | B99: 音频设备租赁 | C99: 线阵列低音音箱 | D99: RCF SUB LINE ARRAY LOUDSPEAKER | E99: Gala dinner | F99: 台/天 | G99: 800 | H99: 10 | I99: 8000 | J99: Y | K99: 800 | L99: 10 | M99: 8000
A100: AV设备租赁 | B100: 音频设备租赁 | C100: 数字功率放大器 | D100: RCF AMP | E100: Gala dinner | F100: 台/天 | G100: 300 | H100: 17 | I100: 5100 | J100: Y | K100: 300 | L100: 17 | M100: 5100
A101: AV设备租赁 | B101: 音频设备租赁 | C101: 数字功率放大器 | D101: QSC AMP | E101: Gala dinner | F101: 台/天 | G101: 300 | H101: 8 | I101: 2400 | J101: Y | K101: 300 | L101: 8 | M101: 2400
A102: AV设备租赁 | B102: 音频设备租赁 | C102: 无线手持 | D102: SHURE UR4D BETA87 UHF HANDHELD MIC | E102: Gala dinner | F102: 台/天 | G102: 200 | H102: 12 | I102: 2400 | J102: Y | K102: 200 | L102: 12 | M102: 2400
A103: AV设备租赁 | B103: 音频设备租赁 | C103: 无线头戴 | D103: SHURE UR4D WH20TQG UHF HEADWORN MIC | E103: Gala dinner | F103: 台/天 | G103: 200 | H103: 6 | I103: 1200 | J103: Y | K103: 200 | L103: 6 | M103: 1200
A104: AV设备租赁 | B104: 音频设备租赁 | C104: 天线放大器 | D104: SHURE UA845 UA830A | E104: Gala dinner | F104: 台/天 | G104: 500 | H104: 2 | I104: 1000 | J104: Y | K104: 500 | L104: 2 | M104: 1000
A105: AV设备租赁 | B105: 音频设备租赁 | C105: 数字音频处理器 | D105: XTA--390 | E105: Gala dinner | F105: 台/天 | G105: 1000 | H105: 2 | I105: 2000 | J105: Y | K105: 1000 | L105: 2 | M105: 2000
A106: AV设备租赁 | B106: 音频设备租赁 | C106: 苹果笔记本 | D106: MAC BOOK PRO | E106: Gala dinner | F106: 台/天 | G106: 500 | H106: 2 | I106: 1000 | J106: Y | K106: 500 | L106: 2 | M106: 1000
A107: AV设备租赁 | B107: 灯光设备租赁 | C107: 灯光版块 | D107: Lighting Mixing Console 灯光控台 MA2 | E107: Gala dinner | F107: 台/天 | G107: 3900 | H107: 1 | I107: 3900 | J107: Y | K107: 3900 | L107: 1 | M107: 3900
A108: AV设备租赁 | B108: 灯光设备租赁 | C108: 灯光版块 | D108: Moving Light/Spot 电脑灯-图案 ROBE1500W | E108: Gala dinner | F108: 台/天 | G108: 350 | H108: 16 | I108: 5600 | J108: Y | K108: 350 | L108: 16 | M108: 5600
A109: AV设备租赁 | B109: 灯光设备租赁 | C109: 灯光版块 | D109: logo片 37.5 | E109: Gala dinner | F109: 个 | G109: 120 | H109: 6 | I109: 720 | J109: Y | K109: 120 | L109: 6 | M109: 720
A110: AV设备租赁 | B110: 灯光设备租赁 | C110: 灯光版块 | D110: 摇头LED par Q3 | E110: Gala dinner | F110: 台/天 | G110: 400 | H110: 50 | I110: 20000 | J110: Y | K110: 400 | L110: 50 | M110: 20000
A111: AV设备租赁 | B111: 灯光设备租赁 | C111: 灯光版块 | D111: Moving Light/wash 电脑灯-光束 ROBE-BM15R-330 | E111: Gala dinner | F111: 台/天 | G111: 400 | H111: 120 | I111: 48000 | J111: Y | K111: 400 | L111: 120 | M111: 48000
A112: AV设备租赁 | B112: 灯光设备租赁 | C112: 灯光版块 | D112: LED par vikey 54珠 | E112: Gala dinner | F112: 台/天 | G112: 150 | H112: 120 | I112: 18000 | J112: Y | K112: 150 | L112: 120 | M112: 18000
A113: AV设备租赁 | B113: 灯光设备租赁 | C113: 灯光版块 | D113: DMX Splitters DMX信号分配放大器 MTL DS-106A | E113: Gala dinner | F113: 台/天 | G113: 150 | H113: 5 | I113: 750 | J113: Y | K113: 150 | L113: 5 | M113: 750
A114: AV设备租赁 | B114: 灯光设备租赁 | C114: 灯光版块 | D114: 四头灯 MONON | E114: Gala dinner | F114: 台/天 | G114: 200 | H114: 6 | I114: 1200 | J114: Y | K114: 200 | L114: 6 | M114: 1200
A115: AV设备租赁 | B115: 灯光设备租赁 | C115: 灯光版块 | D115: Source Four Zoom ETC 成像灯19度 MONON 750W | E115: Gala dinner | F115: 台/天 | G115: 200 | H115: 32 | I115: 6400 | J115: Y | K115: 200 | L115: 32 | M115: 6400
A116: AV设备租赁 | B116: 灯光设备租赁 | C116: 灯光版块 | D116: 追光 MONON 2500W | E116: Gala dinner | F116: 台/天 | G116: 800 | H116: 4 | I116: 3200 | J116: Y | K116: 800 | L116: 4 | M116: 3200
A117: AV设备租赁 | B117: 灯光设备租赁 | C117: 灯光版块 | D117: Digital Dimmer Pack 24路可控硅箱 MTL | E117: Gala dinner | F117: 台/天 | G117: 450 | H117: 1 | I117: 450 | J117: Y | K117: 450 | L117: 1 | M117: 450
A118: AV设备租赁 | B118: 灯光设备租赁 | C118: 灯光版块 | D118: 380V 3Phance Power Box 电源箱 MTL | E118: Gala dinner | F118: 台/天 | G118: 600 | H118: 1 | I118: 600 | J118: Y | K118: 600 | L118: 1 | M118: 600
A119: AV设备租赁 | B119: 灯光设备租赁 | C119: 灯光版块 | D119: LAY架 2M*2M | E119: Gala dinner | F119: 根 | G119: 20 | H119: 2500 | I119: 50000 | J119: Y | K119: 20 | L119: 2500 | M119: 50000
A120: AV设备租赁 | B120: 灯光设备租赁 | C120: 灯光版块 | D120: TURSS架 600X760 | E120: Gala dinner | F120: 米 | G120: 100 | H120: 180 | I120: 18000 | J120: Y | K120: 100 | L120: 180 | M120: 18000
A121: AV设备租赁 | B121: 灯光设备租赁 | C121: 灯光版块 | D121: LFA 烟机(舞台专业数位薄雾机） LFA | E121: Gala dinner | F121: 台/天 | G121: 300 | H121: 4 | I121: =G121*H121 -> 1200 | J121: Y | K121: 300 | L121: 4 | M121: 1200
A122: AV设备租赁 | B122: 灯光设备租赁 | C122: 灯光版块 | D122: Signal Cable 配套线材 | E122: Gala dinner | F122: 项 | G122: 0 | H122: 0 | I122: 0 | J122: Y | K122: 0 | L122: 0 | M122: 0
A123: AV设备租赁 | B123: 灯光设备租赁 | C123: 灯光版块 | D123: 灯光音响-所有物料进撤场搭建人工 | E123: Gala dinner | F123: 位/天 | G123: 300 | H123: 60 | I123: 18000 | J123: Y | K123: 300 | L123: 60 | M123: 18000
A124: AV设备租赁 | B124: 灯光设备租赁 | C124: 灯光版块 | D124: 灯光音响-所有物料往返运输 | E124: Gala dinner | F124: 趟/辆 | G124: 400 | H124: 16 | I124: 6400 | J124: Y | K124: 400 | L124: 16 | M124: 6400
A125: 区域 | B125: 区域 | C125: 搭建&AV | D125: 区域晚宴搭建&AV套餐 | E125: Closing ceremony | F125: 项 | G125: 35000 | H125: 6 | I125: 210000 | J125: Y | K125: 35000 | L125: 6 | M125: =K125*L125 -> 210000
A126: 道具 | B126: 道具 | C126: 晚宴 | D126: 服装+印logo | E126: Gala dinner | F126: 件 | G126: 55 | H126: 1600 | I126: =G126*H126 -> 88000 | J126: Y | K126: 55 | L126: 1600 | M126: =K126*L126 -> 88000
A127: 道具 | B127: 道具 | C127: 晚宴 | D127: 夜光漆 | E127: Gala dinner | F127: 项 | G127: 5000 | H127: 1 | I127: =G127*H127 -> 5000 | J127: Y | K127: 7850 | L127: 1 | M127: =K127*L127 -> 7850 | N127: 三亚现场增加采购
A128: 道具 | B128: 道具 | C128: 制作 | D128: 易拉宝（画画3个，晚宴入场2个，TB6个） | E128: For all sessions | F128: 个 | G128: 200 | H128: 11 | I128: 2200 | J128: Y | K128: 200 | L128: 11 | M128: =K128*L128 -> 2200
A129: 道具 | B129: 道具 | C129: 租赁 | D129: 吉他租赁（2把5天） | E129: Gala dinner | F129: 个 | J129: Y | K129: 250 | L129: 10 | M129: =K129*L129 -> 2500 | N129: 后增加项
A130: 道具 | B130: 道具 | C130: 制作 | D130: KT板支票7个（1.5米长） | E130: Closing ceremony | F130: 个 | J130: Y | K130: 70 | L130: 7 | M130: 490 | N130: 后增加项
A131: 道具 | B131: 道具 | C131: 制作 | D131: 区域手举牌 | E131: Team Building | F131: 个 | J131: Y | K131: 80 | L131: 6 | M131: 480 | N131: 后增加项
A132: 道具 | B132: 道具 | C132: 制作 | D132: 区域指示牌 | E132: Plenary session | F132: 个 | J132: Y | K132: 280 | L132: 7 | M132: 1960 | N132: 后增加项
A133: 道具 | B133: 道具 | C133: 租赁 | D133: 主持人服装 | E133: Gala dinner | F133: 套 | J133: Y | K133: 580 | L133: 1 | M133: 580 | N133: 后增加项
A134: 道具 | B134: 道具 | C134: 模具 | D134: 画服装模具 | E134: Gala dinner | F134: 套 | J134: Y | K134: 350 | L134: 1 | M134: 350 | N134: 后增加项
A135: 道具 | B135: 道具 | C135: 制作 | D135: 主持人手卡 | E135: Gala dinner | F135: 个 | J135: Y | K135: 6 | L135: 60 | M135: 360 | N135: 后增加项
A136: 席位卡 | B136: 制作 | C136: 制作 | D136: 铜版纸+贴胶 | E136: Gala dinner | F136: 个 | G136: 5 | H136: 1600 | I136: 8000 | J136: Y | K136: 5 | L136: 1722 | M136: 8610 | N136: 增加数量
A137: 桌卡托 | B137: 采购 | C137: 三面 | D137: 三面旋转台卡-亚克力 | E137: Gala dinner | F137: 个 | G137: 15 | H137: 160 | I137: 2400 | J137: Y | K137: 0 | L137: 0 | M137: 0 | N137: 减项
A138: 桌卡 | B138: 制作 | C138: 三面 | D138: 铜板纸 三面印刷 | E138: Gala dinner | F138: 个 | G138: 10 | H138: 160 | I138: 1600 | J138: Y | K138: 10 | L138: 160 | M138: =K138*L138 -> 1600
A139: 人名沙瓶 | B139: 采购 | C139: 定制人名 | D139: 人名定制夜光沙瓶 晚宴使用 | E139: Gala dinner | F139: 个 | G139: 70 | H139: 20 | I139: 1400 | J139: Y | K139: 100 | L139: 22 | M139: =K139*L139 -> 2200 | N139: 增加logo定制及数量
A140: 晚宴道具 | B140: 采购 | D140: 配饰（耳环、手环、头戴、发卡等） | E140: Gala dinner | F140: 个 | G140: 35 | H140: 155 | I140: 5425 | J140: Y | K140: 35 | L140: 155 | M140: =K140*L140 -> 5425
A141: 人员 | B141: 人员费用 | C141: 画师 | D141: 给老板画衣服 | E141: Gala dinner | F141: 人/天 | J141: Y | K141: 1600 | L141: 2 | M141: =K141*L141 -> 3200 | N141: 增加项
A142: 人员 | B142: 人员费用 | C142: 礼仪 | D142: 礼仪及服装 | E142: Gala dinner | F142: 人/天 | J142: Y | K142: 600 | L142: 2 | M142: =K142*L142 -> 1200 | N142: 增加项
A143: 人员 | B143: 人员费用 | C143: Dancing | D143: 不含差旅 | E143: Gala dinner | F143: 人/天 | G143: 3500 | H143: 12 | I143: =G143*H143 -> 42000 | J143: Y | K143: 3500 | L143: 12 | M143: =K143*L143 -> 42000 | N143: 开场表演
A144: 人员 | B144: 人员费用 | C144: Dancing | D144: 不含差旅 | E144: Gala dinner | F144: 人/天 | G144: 1500 | H144: 12 | I144: 18000 | J144: Y | K144: 1500 | L144: 12 | M144: 18000 | N144: 串场表演
A145: 人员 | B145: 人员及费用 | C145: 沙画 | D145: 大会开场演艺 | E145: Plenary session | F145: 人 | G145: 25000 | H145: 1 | I145: 25000 | J145: Y | K145: 25000 | L145: 1 | M145: 25000
A146: 人员 | B146: 人员及费用 | C146: 演员 | D146: 晚宴入场欢迎仪式 | E146: Gala dinner | F146: 人 | G146: 3000 | H146: 10 | I146: 30000 | J146: Y | K146: 3000 | L146: 10 | M146: 30000
A147: 人员 | B147: 人员费用 | C147: MC | D147: 本地 | E147: Gala dinner | F147: 人/天 | G147: 8000 | H147: 1 | I147: 8000 | J147: Y | K147: 8000 | L147: 1 | M147: 8000 | N147: 主持1场费用
A148: 人员 | B148: 人员费用 | C148: 团建培训师 | D148: 策划服务费 | E148: Team Building | F148: 项 | G148: 50000 | H148: 1 | I148: =G148*H148 -> 50000 | J148: Y | K148: 50000 | L148: 1 | M148: =K148*L148 -> 50000
A149: 人员 | B149: 人员费用 | C149: 团建培训师 | D149: 36人 | E149: Team Building | F149: 人/天 | G149: 1500 | H149: 36 | I149: 54000 | J149: Y | K149: 1500 | L149: 36 | M149: =K149*L149 -> 54000
A150: 人员 | B150: 人员费用 | C150: 客户总监 | D150: 此项收费适用于活动和项目执行中的人工费用，包括沟通，咨询及现场支持，不适用于创意、设计以及医学支持类工作 | E150: For all sessions | F150: 人/天 | G150: 1000 | H150: 12 | I150: 12000 | J150: N | K150: 1000 | L150: 12 | M150: 12000 | N150: 2人*6天
A151: 人员 | B151: 人员费用 | C151: 客户经理 | D151: 此项收费适用于活动和项目执行中的人工费用，包括沟通，咨询及现场支持，不适用于创意、设计以及医学支持类工作 | E151: For all sessions | F151: 人/天 | G151: 800 | H151: 12 | I151: 9600 | J151: N | K151: 800 | L151: 12 | M151: 9600 | N151: 2人*6天
A152: 人员 | B152: 人员费用 | C152: 客户主管 | D152: 此项收费适用于活动和项目执行中的人工费用，包括沟通，咨询及现场支持，不适用于创意、设计以及医学支持类工作 | E152: For all sessions | F152: 人/天 | G152: 500 | H152: 12 | I152: 6000 | J152: N | K152: 500 | L152: 12 | M152: 6000 | N152: 2人*6天
A153: 人员 | B153: 人员费用 | C153: 项目经理 | D153: 此项收费适用于活动和项目执行中的人工费用，包括沟通，咨询及现场支持，不适用于创意、设计以及医学支持类工作 | E153: For all sessions | F153: 人/天 | G153: 500 | H153: 24 | I153: 12000 | J153: N | K153: 500 | L153: 24 | M153: 12000 | N153: 4人*6天
A154: 人员 | B154: 人员费用 | C154: 活动现场支持 | D154: 每个酒店2人负责画服装，会议及晚宴兼职，TB搬运物料，区域晚宴兼职 | E154: For all sessions | F154: 人/天 | G154: 500 | H154: 40 | I154: 20000 | J154: Y | K154: 500 | L154: 40 | M154: 20000 | N154: 8人*6天
A155: 人员 | B155: 人员费用 | C155: 摄像师 | D155: 本地 4人 | E155: Plenary session | F155: 人/天 | G155: 2500 | H155: 4 | I155: 10000 | J155: Y | K155: 2500 | L155: 4 | M155: 10000
A156: 人员 | B156: 人员费用 | C156: 摄影师 | D156: 北京 2人 | E156: Plenary session | F156: 人/天 | G156: 5000 | H156: 2 | I156: 10000 | J156: Y | K156: 5000 | L156: 2 | M156: 10000
A157: 人员 | B157: 人员费用 | C157: 摇臂 | E157: Plenary session | F157: 人/天 | J157: Y | K157: 7000 | L157: 1 | M157: 7000 | N157: 增加项
A158: 人员 | B158: 人员费用 | C158: 云台摄影 | D158: 拍摄人浪及颁奖 | E158: Plenary session | F158: 人/天 | J158: Y | K158: 5000 | L158: 1 | M158: 5000 | N158: 增加项
A159: 人员 | B159: 人员费用 | C159: 摄像师 | D159: 本地 2人 | E159: Gala dinner | F159: 人/天 | G159: 2500 | H159: 2 | I159: =G159*H159 -> 5000 | J159: Y | K159: 2500 | L159: 2 | M159: =K159*L159 -> 5000
A160: 人员 | B160: 人员费用 | C160: 摄影师 | D160: 北京 2人 | E160: Gala dinner | F160: 人/天 | G160: 5000 | H160: 2 | I160: 10000 | J160: Y | K160: 5000 | L160: 2 | M160: 10000
A161: 人员 | B161: 人员费用 | C161: 摄像师 | D161: 本地 3人 | E161: Team Building | F161: 人/天 | G161: 2500 | H161: 2 | I161: =G161*H161 -> 5000 | J161: Y | K161: 2500 | L161: 3 | M161: 7500 | N161: 增加人数
A162: 人员 | B162: 人员费用 | C162: 摄影师 | D162: 北京 2人 | E162: Team Building | F162: 人/天 | G162: 5000 | H162: 2 | I162: 10000 | J162: Y | K162: 5000 | L162: 2 | M162: 10000
A163: 人员 | B163: 人员费用 | C163: 摄像师 | D163: 区域晚宴 4人 | E163: Closing ceremony | F163: 人/天 | G163: 2500 | H163: 4 | I163: =G163*H163 -> 10000 | J163: Y | K163: 2500 | L163: 6 | M163: 15000 | N163: 增加人数
A164: 人员 | B164: 人员费用 | C164: 摄影师 | D164: 区域晚宴 4人 | E164: Closing ceremony | F164: 人/天 | G164: 3000 | H164: 4 | I164: 12000 | J164: Y | K164: 3000 | L164: 4 | M164: 12000
A165: 人员 | B165: 人员费用 | C165: 摄影师 | D165: 区域晚宴 北京 2人 | E165: Closing ceremony | F165: 人/天 | G165: 5000 | H165: 2 | I165: 10000 | J165: Y | K165: 5000 | L165: 2 | M165: 10000
A166: 人员 | B166: 人员费用 | C166: 摇臂 | D166: 晚宴 | E166: Gala dinner | F166: 人/天 | G166: 7000 | H166: 1 | I166: 7000 | J166: Y | K166: 7000 | L166: 1 | M166: 7000
A167: 人员 | B167: 人员费用 | C167: 云摄影 | D167: 微信实时上传（含设备及修图） | E167: For all sessions | F167: 场 | G167: 2500 | H167: 9 | I167: 22500 | J167: Y | K167: 2500 | L167: 9 | M167: 22500
A168: 人员 | B168: 人员费用 | C168: 导播 | D168: 导播 | E168: Plenary session | F168: 人/天 | G168: 6000 | H168: 1 | I168: 6000 | J168: Y | K168: 6000 | L168: 1 | M168: 6000
A169: 人员 | B169: 人员费用 | C169: 航拍 | D169: 团建 | E169: Team Building | F169: 人/天 | G169: 8000 | H169: 1 | I169: 8000 | J169: Y | K169: 8000 | L169: 1 | M169: 8000
A170: 人员 | B170: 人员费用 | C170: 化妆师 | D170: 晚宴 | E170: Gala dinner | F170: 人/天 | G170: 1000 | H170: 10 | I170: 10000 | J170: Y | K170: 1000 | L170: 10 | M170: 10000
A171: 人员 | B171: 人员费用 | C171: 技术人员 | D171: 灯光，音响，视频，美工，电工 | F171: 人/天 | I171: 0 | J171: Y | M171: 0
A172: 人员 | B172: 人员费用 | C172: 现场沟通人员 | F172: 人/天 | I172: 0 | J172: Y | M172: 0
A173: 道具 | B173: 道具 | C173: 区域 | D173: 给区域提供服装、老师等 | E173: Gala dinner | F173: 区域 | G173: 5000 | H173: 6 | I173: =G173*H173 -> 30000 | J173: Y | K173: 5000 | L173: 6 | M173: 30000
A174: 道具 | B174: 道具 | C174: 团建 | D174: 运动会道具，计分道具 | E174: Team Building | F174: 组 | G174: 70000 | H174: 1 | I174: =G174*H174 -> 70000 | J174: Y | K174: 80000 | L174: 1 | M174: =K174*L174 -> 80000 | N174: 增加大型设备
A175: 道具 | B175: 道具 | C175: 团建 | D175: 冰袖 | E175: Team Building | F175: 件 | G175: 12 | H175: 1600 | I175: =G175*H175 -> 19200 | J175: Y | K175: 12 | L175: 1600 | M175: =K175*L175 -> 19200
A176: 差旅费用 | B176: 差旅费用 | C176: 交通+食宿 | D176: 团建师差旅（上海） | E176: Team Building | F176: 人 | J176: Y | K176: 3500 | L176: 10 | M176: 35000 | N176: 增加项
A177: 差旅费用 | B177: 差旅费用 | C177: 交通+食宿 | D177: 舞蹈演员 | E177: Gala dinner | F177: 人 | G177: 3000 | H177: 14 | I177: =G177*H177 -> 42000 | J177: Y | K177: 3000 | L177: 14 | M177: =K177*L177 -> 42000
A178: 差旅费用 | B178: 差旅费用 | C178: 考察 | D178: 前期踩点测量等 | E178: For all sessions | F178: 人 | G178: 3000 | H178: 4 | I178: =G178*H178 -> 12000 | J178: Y | K178: 3000 | L178: 4 | M178: =K178*L178 -> 12000
A179: 差旅费用 | B179: 差旅费用 | C179: 交通+食宿 | D179: 摄影师2人 | E179: For all sessions | F179: 人 | G179: 4000 | H179: 2 | I179: =G179*H179 -> 8000 | J179: Y | K179: 4000 | L179: 2 | M179: =K179*L179 -> 8000
A180: 差旅费用 | B180: 差旅费用 | C180: 交通费 | D180: 6位工作人员 | E180: For all sessions | F180: 人/天 | G180: 3300 | H180: 6 | I180: =G180*H180 -> 19800 | J180: Y | K180: 2493 | L180: 6 | M180: =K180*L180 -> 14958 | N180: 减少
A181: 差旅费用 | B181: 差旅费用 | C181: 住宿费 | D181: 3间工作人员8晚住宿 | E181: For all sessions | F181: 人/天 | G181: 600 | H181: 24 | I181: 14400 | J181: Y | K181: 600 | L181: 24 | M181: 14400
A182: 差旅费用 | B182: 差旅费用 | C182: 餐费+当地交通费+通讯费 | D182: 6位工作人员*8天 | E182: For all sessions | F182: 人/天 | G182: 300 | H182: 48 | I182: 14400 | J182: Y | K182: 300 | L182: 48 | M182: 14400
G183: 搭建制作总计(不含服务费和税费): | I183: =SUM(I15:I182) -> 1787005 | M183: =SUM(M31:M182) -> 1843183
H184: 其他项费用小计：
H185: 第三方费用小计 Total 3rd party cost: | I185: =SUM(I15:I182)-I151-I150-I152-I153 -> 1747405 | M185: =M183-M150-M151-M152-M153 -> 1803583
B186: 服务费 Service Fee | D186: 市场营销公司垫付的零星第三方支出，需要收取在实际发生基础上收取服务费的部分。请注意需要付款时提供第三方发票作为支持文件。 | H186: 0.1 | I186: =I185*H186 -> 174740.5 | M186: =M185*0.1 -> 180358.3
H187: 不含税总计: | I187: =I183+I186 -> 1961745.5 | M187: =M183+M186 -> 2023541.3
G188: 税金 Tax | H188: 0.06 | I188: =I187*H188 -> 117704.73 | M188: =M187*0.06 -> 121412.478

Sheet Video视频
A1: 施维雅报价明细-视频制作
A4: Currency币种:CNY人民币
A5: 说明：
A6: * | B6: 施维雅只接受6%的增值税,其他税费请一律含进单价
A7: * | B7: 如有任何修改或添加行，请用红色字体显示
A8: * | B8: 请不要删除行
A9: * | B9: 所有单价都不含增值税
E11: 具体项目预算 Quotation | I11: 具体项目结算
A12: 视频名称 | B12: 项目 Item | C12: 内容描述 Description | D12: 收费单位 Unit | E12: 单价 Unit Price | F12: 数量 Unit | G12: 总价 Subtotal | H12: 是否第三方费用? （Y/N) | I12: 结算单价 | J12: 结算数量 | K12: 结算总计 | L12: 备注
A13: Warm-up Video(大会暖场视频) | B13: 二维动画制作（Flash） | D13: 秒/Sec | E13: 300 | F13: 0 | G13: =E13*F13 -> 0 | H13: Y | I13: 300 | J13: 0 | K13: =I13*J13 -> 0
A14: Warm-up Video(大会暖场视频) | B14: 三维动画制作 | D14: 秒/Sec | E14: 500 | F14: 0 | G14: =E14*F14 -> 0 | H14: Y | I14: 500 | J14: 0 | K14: 0
A15: Warm-up Video(大会暖场视频) | B15: 动态幻灯片 | D15: 秒/Sec | E15: 200 | F15: 0 | G15: 0 | H15: Y | I15: 200 | J15: 0 | K15: 0
A16: Warm-up Video(大会暖场视频) | B16: 脚本大纲 | C16: 视频主线，大纲发展 | D16: 个/pc | E16: 3000 | F16: 1 | G16: 3000 | H16: N | I16: 3000 | J16: 1 | K16: 3000
A17: Warm-up Video(大会暖场视频) | B17: 脚本编辑 | C17: 活动或拍摄活动前期的脚本编写 | D17: 小时/hour | E17: 500 | F17: 8 | G17: 4000 | H17: N | I17: 500 | J17: 8 | K17: 4000
A18: Warm-up Video(大会暖场视频) | B18: 视频素材收集 | C18: 包含拍摄前采访、图片检索、对施维雅提供的素材进行整理等 | D18: 小时/hour | E18: 150 | F18: 20 | G18: 3000 | H18: N | I18: 150 | J18: 20 | K18: 3000
A19: Warm-up Video(大会暖场视频) | B19: 拍摄 | C19: 全天拍摄（单机位），含1位拍摄人员的费用 | D19: 天/day | E19: 4000 | F19: 0 | G19: 0 | H19: Y | I19: 4000 | J19: 0 | K19: 0
A20: Warm-up Video(大会暖场视频) | B20: 特效 | C20: 转场特效，字幕特效，logo特效等 | D20: 个/pc | E20: 300 | F20: 2 | G20: 600 | H20: Y | I20: 300 | J20: 2 | K20: 600
A21: Warm-up Video(大会暖场视频) | B21: 配乐 | C21: 为视频提供背景音乐(不包括版权音乐的版权费) | D21: 个/pc | E21: 500 | F21: 1 | G21: 500 | H21: Y | I21: 500 | J21: 1 | K21: 500
A22: Warm-up Video(大会暖场视频) | B22: 字幕 | C22: 按照剧本为视频添加字幕(不包括特效字幕) | D22: 分钟 | E22: 200 | F22: 0 | G22: 0 | H22: Y | I22: 200 | J22: 0 | K22: 0
A23: Warm-up Video(大会暖场视频) | B23: 配音 | C23: 按照剧本进行配音，专业级配音演员 | D23: 分钟 | E23: 500 | F23: 0 | G23: 0 | H23: Y | I23: 500 | J23: 0 | K23: 0
A24: Warm-up Video(大会暖场视频) | B24: 三维特效 | D24: 秒 | E24: 500 | F24: 0 | G24: 0 | H24: Y | I24: 500 | J24: 0 | K24: 0
A25: Warm-up Video(大会暖场视频) | B25: 修图 Patch up | C25: 对实拍的人物照片进行修补 | D25: 张/pc | E25: 150 | F25: 15 | G25: 2250 | H25: Y | I25: 150 | J25: 15 | K25: 2250
A26: Warm-up Video(大会暖场视频) | B26: 后期加工及内容剪辑 Filming Editing | C26: 视频剪辑，指对母带进行剪辑，按工作时间收取 | D26: 小时/hour | E26: 500 | F26: 20 | G26: 10000 | H26: Y | I26: 500 | J26: 20 | K26: 10000
A27: Warm-up Video(大会暖场视频) | B27: 多媒体的合成 | C27: 包含配音、配乐、字幕的合成；收费标准指一套成品 | D27: 个/pc | E27: 200 | F27: 5 | G27: 1000 | H27: Y | I27: 200 | J27: 5 | K27: 1000
A28: 暖场视频（增加） | B28: 大屏幕使用 | C28: 单独制作一个不同尺寸的暖场视频，每一分钟后出现KV | D28: 个/pc | E28: 8000 | F28: 1 | G28: 8000 | H28: Y | I28: 8000 | J28: 1 | K28: 8000
A29: Top Sales Video（销售明星视频） | B29: 二维动画制作（Flash） | D29: 秒/Sec | E29: 300 | F29: 20 | G29: 6000 | H29: Y | I29: 300 | J29: 20 | K29: 6000
A30: Top Sales Video（销售明星视频） | B30: 三维动画制作 | D30: 秒/Sec | E30: 500 | F30: 30 | G30: =E30*F30 -> 15000 | H30: Y | I30: 500 | J30: 30 | K30: 15000
A31: Top Sales Video（销售明星视频） | B31: 动态幻灯片 | D31: 秒/Sec | E31: 200 | F31: 0 | G31: 0 | H31: Y | I31: 200 | J31: 0 | K31: 0
A32: Top Sales Video（销售明星视频） | B32: 脚本大纲 | C32: 视频主线，大纲发展 | D32: 个/pc | E32: 3000 | F32: 1 | G32: 3000 | H32: N | I32: 3000 | J32: 1 | K32: 3000
A33: Top Sales Video（销售明星视频） | B33: 脚本编辑 | C33: 活动或拍摄活动前期的脚本编写 | D33: 小时/hour | E33: 500 | F33: 8 | G33: 4000 | H33: N | I33: 500 | J33: 8 | K33: 4000
A34: Top Sales Video（销售明星视频） | B34: 视频素材收集 | C34: 包含拍摄前采访、图片检索、对施维雅提供的素材进行整理等 | D34: 小时/hour | E34: 150 | F34: 10 | G34: 1500 | H34: N | I34: 150 | J34: 10 | K34: 1500
A35: Top Sales Video（销售明星视频） | B35: 拍摄 | C35: 全天拍摄（单机位），含位拍摄人员的费用 | D35: 天/day | E35: 4000 | F35: 13 | G35: 52000 | H35: Y | I35: 4000 | J35: 12 | K35: =I35*J35 -> 48000 | L35: 减少天数
A36: Top Sales Video（销售明星视频） | B36: 差旅 | C36: 北京-全国4-5地 | D36: 人 | E36: 4000 | F36: 5 | G36: 20000 | H36: Y | I36: 16850 | J36: 1 | K36: =I36*J36 -> 16850 | L36: 实际发生减少
A37: Top Sales Video（销售明星视频） | B37: 特效 | C37: 转场特效，字幕特效，logo特效等 | D37: 个/pc | E37: 300 | F37: 5 | G37: 1500 | H37: Y | I37: 300 | J37: 5 | K37: =I37*J37 -> 1500
A38: Top Sales Video（销售明星视频） | B38: 配乐 | C38: 为视频提供背景音乐(不包括版权音乐的版权费) | D38: 个/pc | E38: 500 | F38: 1 | G38: 500 | H38: Y | I38: 500 | J38: 1 | K38: 500
A39: Top Sales Video（销售明星视频） | B39: 字幕 | C39: 按照剧本为视频添加字幕(不包括特效字幕) | D39: 分钟 | E39: 200 | F39: 0 | G39: 0 | H39: Y | I39: 200 | J39: 0 | K39: 0
A40: Top Sales Video（销售明星视频） | B40: 配音 | C40: 按照剧本进行配音，专业级配音演员 | D40: 分钟 | E40: 500 | F40: 0 | G40: 0 | H40: Y | I40: 500 | J40: 0 | K40: 0
A41: Top Sales Video（销售明星视频） | B41: 三维特效 | D41: 秒 | E41: 500 | F41: 25 | G41: 12500 | H41: Y | I41: 500 | J41: 25 | K41: 12500
A42: Top Sales Video（销售明星视频） | B42: 修图 Patch up | C42: 对实拍的人物照片进行修补 | D42: 张/pc | E42: 150 | F42: 30 | G42: 4500 | H42: Y | I42: 150 | J42: 30 | K42: 4500
A43: Top Sales Video（销售明星视频） | B43: 后期加工及内容剪辑 Filming Editing | C43: 视频剪辑，指对母带进行剪辑，按工作时间收取 | D43: 小时/hour | E43: 500 | F43: 30 | G43: 15000 | H43: Y | I43: 500 | J43: 30 | K43: 15000
A44: Top Sales Video（销售明星视频） | B44: 多媒体的合成 | C44: 包含配音、配乐、字幕的合成；收费标准指一套成品 | D44: 个/pc | E44: 200 | F44: 4 | G44: 800 | H44: Y | I44: 200 | J44: 4 | K44: 800
A45: 沙画视频剪辑 | B45: 配乐 | C45: 为视频提供背景音乐(不包括版权音乐的版权费) | D45: 个/pc | E45: 500 | F45: 1 | G45: =E45*F45 -> 500 | H45: Y | I45: 500 | J45: 1 | K45: 500
A46: 沙画视频剪辑 | B46: 后期加工及内容剪辑（大会结束和H5） Filming Editing | C46: 视频剪辑，指对母带进行剪辑，按工作时间收取 | D46: 小时/hour | E46: 500 | F46: 15 | G46: 7500 | H46: Y | I46: 500 | J46: 15 | K46: 7500
A47: Post-event video - Gala dinner（晚宴现场花絮视频） | B47: 配乐 | C47: 为视频提供背景音乐(不包括版权音乐的版权费) | D47: 个/pc | E47: 500 | F47: 1 | G47: =E47*F47 -> 500 | H47: Y | I47: 500 | J47: 1 | K47: 500
A48: Post-event video - Gala dinner（晚宴现场花絮视频） | B48: 后期加工及内容剪辑（连夜剪辑） Filming Editing | C48: 视频剪辑，指对母带进行剪辑，按工作时间收取 | D48: 小时/hour | E48: 1000 | F48: 10 | G48: 10000 | H48: Y | I48: 1000 | J48: 10 | K48: 10000
A49: Post-event video - Team building（拓展活动现场花絮视频） | B49: 配乐 | C49: 为视频提供背景音乐(不包括版权音乐的版权费) | D49: 个/pc | E49: 500 | F49: 1 | G49: =E49*F49 -> 500 | H49: Y | I49: 500 | J49: 1 | K49: 500
A50: Post-event video - Team building（拓展活动现场花絮视频） | B50: 后期加工及内容剪辑（连夜剪辑） Filming Editing | C50: 视频剪辑，指对母带进行剪辑，按工作时间收取 | D50: 小时/hour | E50: 1000 | F50: 10 | G50: 10000 | H50: Y | I50: 1000 | J50: 10 | K50: 10000
A51: 区域晚宴视频剪辑7个 | B51: 配乐 | C51: 为视频提供背景音乐(不包括版权音乐的版权费) | D51: 个/pc | E51: 500 | F51: 1 | G51: 500 | H51: Y | I51: 500 | J51: 1 | K51: 500
A52: 区域晚宴视频剪辑7个 | B52: 后期加工及内容剪辑 Filming Editing | C52: 视频剪辑，指对母带进行剪辑，按工作时间收取 | D52: 小时/hour | E52: 500 | F52: 70 | G52: 35000 | H52: Y | I52: 500 | J52: 70 | K52: 35000
A53: 整体活动剪辑 | B53: 配乐 | C53: 为视频提供背景音乐(不包括版权音乐的版权费) | D53: 个/pc | E53: 500 | F53: 1 | G53: =E53*F53 -> 500 | H53: Y | I53: 500 | J53: 1 | K53: 500
A54: 整体活动剪辑 | B54: 后期加工及内容剪辑（连夜剪辑） Filming Editing | C54: 视频剪辑，指对母带进行剪辑，按工作时间收取 | D54: 小时/hour | E54: 1000 | F54: 10 | G54: 10000 | H54: Y | I54: 1000 | J54: 10 | K54: 10000
A55: 晚宴20周年视频剪辑2个 | B55: 配乐 | C55: 为视频提供背景音乐(不包括版权音乐的版权费) | D55: 个/pc | E55: 500 | F55: 2 | G55: =E55*F55 -> 1000 | H55: Y | I55: 500 | J55: 2 | K55: 1000
A56: 晚宴20周年视频剪辑2个 | B56: 后期加工及内容剪辑（连夜剪辑） Filming Editing | C56: 视频剪辑，指对母带进行剪辑，按工作时间收取 | D56: 小时/hour | E56: 1000 | F56: 20 | G56: 20000 | H56: Y | I56: 1000 | J56: 20 | K56: 20000
A57: 动态KV | B57: 配乐 | C57: 特效音 | D57: 个/pc | H57: Y | I57: 500 | J57: 1 | K57: =I57*J57 -> 500 | L57: 增加项
A58: 动态KV | B58: 后期加工及内容剪辑（连夜剪辑） Filming Editing | C58: 动态特效制作 | D58: 小时/hour | H58: Y | I58: 1000 | J58: 4 | K58: =I58*J58 -> 4000 | L58: 增加项
A59: 视频总计(不含服务费和税费): | G59: =SUM(G13:G56) -> 264650 | K59: =SUM(K13:K58) -> 262000
F60: 其他项费用小计： | G60: =SUM(G56:G56) -> 20000
B61: 第三方费用小计 Total 3rd party cost: | G61: =SUM(G13:G54)-G34-G33-G32-G18-G17-G16 -> 225150 | K61: =K59-K16-K17-K18-K32-K33-K34 -> 243500
B62: 服务费 Service Fee | C62: 市场营销公司垫付的零星第三方支出，需要收取在实际发生基础上收取服务费的部分。请注意需要付款时提供第三方发票作为支持文件。 | F62: 0.1 | G62: =G61*F62 -> 22515 | K62: =K61*0.1 -> 24350
B63: 不含税总计: | G63: =G59+G62 -> 287165 | K63: =K59+K62 -> 286350
B64: 税金 Tax | F64: 0.06 | G64: =G63*F64 -> 17229.9 | K64: =K63*0.06 -> 17181

Sheet Sheet3 (hidden)
B2: Plenary session | C2: Creative director
B3: Gala dinner | C3: Associate Creative Director
B4: Team Building | C4: Copywriter
B5: Closing ceremony | C5: 2D designer
B6: For all sessions | C6: Senior Project Manager
C7: Project Manager
C8: 3D designer
C9: Developer
C10: Technicals
